bitfinex-derivatives/quotes_SOLF0:USTF0_20251115
["timestamp","ask_amount","ask_price","bid_price","bid_amount"]
[1763241983798,5.24213747,140.15,140.14,3.12]
[1763241983985,0.0486217,140.15,140.14,3.12]
[1763241984190,5.24213747,140.15,140.14,3.12]
[1763241984697,10.38755645,140.15,140.14,3.12]
[1763241986589,10.38755645,140.15,140.13,0.0458393]
[1763241986901,10.33893475,140.14,140.13,0.0458393]
[1763241987088,13.2049992,140.14,140.13,0.0458393]
[1763241993614,10.33893475,140.14,140.13,3.1458393]
[1763241993808,5.19351577,140.14,140.13,3.1458393]
[1763241996911,5.19404068,140.15,140.13,3.1458393]
[1763241996912,5.24213747,140.15,140.13,3.1458393]
[1763241997312,0.0486217,140.15,140.13,3.1458393]
[1763241997507,5.24213747,140.15,140.13,3.1458393]
[1763241997707,0.0486217,140.15,140.13,3.1458393]
[1763242000718,5.24213747,140.15,140.13,3.1458393]
[1763242000923,5.14864913,140.14,140.13,3.1458393]
[1763242002023,5.14541898,140.16,140.13,3.1458393]
[1763242002212,5.14541898,140.18,140.13,3.1458393]
[1763242002615,5.14541898,140.17,140.13,3.1458393]
[1763242002808,5.14541898,140.18,140.13,3.1458393]
[1763242003008,5.14541898,140.17,140.13,3.1458393]
[1763242003214,5.19669577,140.17,140.13,3.1458393]
[1763242003816,6.97997381,140.16,140.13,3.1458393]
[1763242004615,5.14541898,140.15,140.13,3.1458393]
[1763242005820,6.97997381,140.16,140.13,3.1458393]
[1763242008125,5.14541898,140.15,140.13,3.1458393]
[1763242009032,5.14541898,140.15,140.13,0.0458393]
[1763242011128,5.14541898,140.14,140.13,0.0458393]
[1763242011315,5.14541898,140.15,140.13,0.0458393]
[1763242011515,5.14541898,140.14,140.13,0.0458393]
[1763242011719,5.14541898,140.15,140.13,0.0458393]
[1763242011921,5.14541898,140.14,140.13,0.0458393]
[1763242012120,5.14541898,140.15,140.13,0.0458393]
[1763242012324,5.14541898,140.14,140.13,0.0458393]
[1763242012522,5.14541898,140.15,140.13,0.0458393]
[1763242012726,5.14541898,140.14,140.13,0.0458393]
[1763242012923,5.14541898,140.15,140.13,0.0458393]
[1763242013128,5.14541898,140.14,140.13,0.0458393]
[1763242013326,5.14541898,140.15,140.13,0.0458393]
[1763242013528,5.14541898,140.14,140.13,0.0458393]
[1763242013728,5.14541898,140.15,140.13,0.0458393]
[1763242013922,5.14541898,140.14,140.13,0.0458393]
[1763242014120,10.22018632,140.15,140.13,0.0458393]
[1763242014319,10.22018632,140.14,140.13,0.0458393]
[1763242020231,1.83455483,140.12,140.09,3.21]
[1763242020733,6.90932217,140.12,140.09,3.21]
[1763242020931,1.83455483,140.12,140.09,3.21]
[1763242021132,6.95765624,140.12,140.09,3.25902753]
[1763242021330,1.8828889,140.12,140.09,3.25902753]
[1763242021630,6.95765624,140.12,140.09,3.25902753]
[1763242021930,1.8828889,140.12,140.09,3.25902753]
[1763242022132,10.22018632,140.11,140.09,3.25902753]
[1763242022529,5.07476734,140.1,140.09,0.04902753]
[1763242024139,5.07476734,140.1,140.09,3.37902753]
[1763242024326,5.07476734,140.11,140.09,0.04902753]
[1763242024525,5.07476734,140.1,140.09,0.04902753]
[1763242024725,5.07476734,140.1,140.09,3.37902753]
[1763242024929,5.07476734,140.11,140.09,3.37902753]
[1763242029635,1.8828889,140.12,140.09,3.37902753]
[1763242029838,5.07476734,140.11,140.09,3.37902753]
[1763242031240,12.10307522,140.12,140.09,3.37902753]
[1763242031439,1.8828889,140.12,140.09,3.37902753]
[1763242031635,5.12310141,140.12,140.09,3.37902753]
[1763242031840,0.04833407,140.12,140.1,3.33]
[1763242032630,5.07476734,140.15,140.11,1.83455483]
[1763242032835,5.07476734,140.16,140.12,3.33]
[1763242033237,5.07476734,140.15,140.12,3.33]
[1763242033540,10.22018632,140.17,140.12,3.33]
[1763242033746,0.05118737,140.16,140.14,3.33]
[1763242035041,5.07476734,140.19,140.16,3.33]
[1763242035241,10.22018632,140.2,140.16,3.33]
[1763242035444,10.22018632,140.21,140.16,3.33]
[1763242035643,5.07476734,140.2,140.16,3.33]
[1763242036044,0.04821761,140.19,140.18,3.33]
[1763242038546,0.04821761,140.19,140.17,3.37879035]
[1763242040147,0.04821761,140.19,140.17,4.79879035]
[1763242040452,0.04821761,140.19,140.18,3.33]
[1763242041341,10.22018632,140.23,140.19,3.33]
[1763242041541,6.90932217,140.25,140.19,3.33]
[1763242042147,1.83455483,140.25,140.19,3.33]
[1763242042356,0.04536519,140.23,140.22,3.33]
[1763242043849,1.87992002,140.23,140.21,0.05354723]
[1763242044050,1.87992002,140.23,140.21,3.38354723]
[1763242047055,1.87992002,140.23,140.21,0.05354723]
[1763242047855,1.87992002,140.23,140.15,3.33]
[1763242048053,1.83455483,140.19,140.15,3.33]
[1763242048556,1.83455483,140.17,140.15,3.33]
[1763242049056,1.88357246,140.17,140.15,3.37946624]
[1763242051558,0.04901763,140.17,140.15,3.37946624]
[1763242056063,1.88357246,140.17,140.15,3.37946624]
[1763242060359,1.88357246,140.17,140.15,0.04946624]
[1763242061662,1.83455483,140.14,140.09,3.29]
[1763242062674,0.05027142,140.13,140.11,3.29]
[1763242066665,2.86749965,140.2,140.11,3.29]
[1763242066872,2.86749965,140.2,140.12,3.29]
[1763242067671,0.04542192,140.17,140.15,3.34303433]
[1763242071371,5.12117298,140.21,140.15,3.34303433]
[1763242071575,10.19830651,140.22,140.15,3.34303433]
[1763242071873,5.07713353,140.22,140.15,3.34303433]
[1763242072375,0.05236546,140.2,140.15,3.34303433]
[1763242076879,5.14902661,140.2,140.15,3.34303433]
[1763242078374,5.09666115,140.19,140.15,3.34303433]
[1763242079275,5.14902661,140.2,140.15,3.34303433]
[1763242079475,5.09666115,140.19,140.15,3.34303433]
[1763242080281,5.14902661,140.2,140.15,3.34303433]
[1763242080883,5.09666115,140.19,140.15,3.34303433]
[1763242081380,5.14902661,140.2,140.15,3.34303433]
[1763242081684,5.09666115,140.19,140.15,3.34303433]
[1763242085683,5.14902661,140.2,140.15,3.34303433]
[1763242086071,5.09666115,140.19,140.15,3.34303433]
[1763242089487,5.17353844,140.2,140.15,3.34303433]
[1763242089488,0.05236546,140.2,140.15,3.34303433]
[1763242089674,5.14902661,140.2,140.15,3.34303433]
[1763242089876,0.05236546,140.2,140.17,3.34]
[1763242110504,0.05236546,140.2,140.17,24.34]
[1763242110706,0.05236546,140.2,140.18,3.09]
[1763242111202,5.12117298,140.26,140.18,3.09]
[1763242111408,5.10727975,140.25,140.18,3.09]
[1763242111609,5.10727975,140.24,140.18,3.09]
[1763242112107,10.22845273,140.25,140.18,3.09]
[1763242112312,0.0520639,140.23,140.2,3.13858284]
[1763242116307,5.15934365,140.23,140.2,3.13858284]
[1763242116515,0.0520639,140.23,140.2,3.13858284]
[1763242116709,5.15934365,140.23,140.2,3.13858284]
[1763242116914,0.0520639,140.23,140.2,3.13858284]
[1763242117213,5.15934365,140.23,140.2,3.13858284]
[1763242117513,0.0520639,140.23,140.2,3.13858284]
[1763242117711,5.15934365,140.23,140.2,3.13858284]
[1763242117908,0.0520639,140.23,140.2,3.13858284]
[1763242118107,5.15934365,140.23,140.2,3.13858284]
[1763242118319,0.0520639,140.23,140.2,3.13858284]
[1763242118502,5.10727975,140.22,140.2,3.13858284]
[1763242121514,5.15934365,140.23,140.2,3.13858284]
[1763242121716,5.10727975,140.22,140.2,3.13858284]
[1763242123017,5.15934365,140.23,140.2,3.13858284]
[1763242123221,5.10727975,140.22,140.2,3.13858284]
[1763242128523,5.19463439,140.23,140.2,3.13858284]
[1763242128817,6.99083114,140.22,140.2,0.04858284]
[1763242129023,5.15789252,140.21,140.2,0.04858284]
[1763242132223,10.30046301,140.21,140.2,0.04858284]
[1763242132425,5.15789252,140.21,140.2,0.04858284]
[1763242132624,10.30046301,140.21,140.2,0.04858284]
[1763242132923,5.15789252,140.21,140.2,0.04858284]
[1763242133124,10.30046301,140.21,140.2,0.04858284]
[1763242133327,5.15789252,140.21,140.2,0.04858284]
[1763242133522,10.30046301,140.21,140.2,0.04858284]
[1763242133828,5.15789252,140.21,140.2,0.04858284]
[1763242134016,10.30046301,140.21,140.2,0.04858284]
[1763242136231,12.13340163,140.21,140.16,3.38]
[1763242136418,10.30046301,140.2,140.16,3.38]
[1763242136620,10.30046301,140.19,140.16,3.38]
[1763242136925,5.15789252,140.18,140.16,3.38]
[1763242137125,0.05097432,140.18,140.16,3.43223716]
[1763242137424,180.0,239.0,140.17,3.38]
[1763242137425,10.30647452,140.21,140.17,3.38]
[1763242137624,5.16390403,140.2,140.17,3.38]
[1763242137832,5.14257049,140.21,140.17,3.38]
[1763242138035,5.1642528,140.2,140.17,3.38]
[1763242138224,5.14257049,140.21,140.17,3.38]
[1763242138534,5.21847984,140.2,140.19,3.38]
[1763242141724,5.21884212,140.2,140.19,3.38]
[1763242149738,5.21884212,140.2,140.18,0.04927473]
[1763242149939,0.05320942,140.2,140.18,0.04927473]
[1763242150340,0.05320942,140.2,140.18,3.15927473]
[1763242151246,0.05320942,140.2,140.18,0.04927473]
[1763242151247,12.16400874,140.19,140.18,0.04927473]
[1763242151437,12.16400874,140.19,140.14,3.11]
[1763242151641,10.33107012,140.18,140.14,3.11]
[1763242151945,5.16435261,140.17,140.14,3.11]
[1763242152130,5.16671751,140.19,140.14,3.11]
[1763242152440,10.37799315,140.18,140.16,3.12]
[1763242152636,5.16202005,140.17,140.16,3.12]
[1763242153540,0.04925559,140.18,140.16,3.12]
[1763242154943,0.04925559,140.18,140.15,3.17011526]
[1763242157237,5.21012485,140.18,140.15,3.17011526]
[1763242157438,0.04925559,140.18,140.15,3.17011526]
[1763242157641,5.21012485,140.18,140.15,3.17011526]
[1763242157841,0.04925559,140.18,140.15,3.17011526]
[1763242158042,5.21012485,140.18,140.15,3.17011526]
[1763242158344,0.04925559,140.18,140.15,3.17011526]
[1763242158540,5.21350792,140.18,140.15,3.17011526]
[1763242158844,0.04925559,140.18,140.15,3.17011526]
[1763242159038,5.21350792,140.18,140.15,3.17011526]
[1763242159240,0.04925559,140.18,140.15,3.17011526]
[1763242159834,5.21244638,140.18,140.15,3.17011526]
[1763242160034,0.04925559,140.18,140.15,3.17011526]
[1763242161037,5.21291124,140.18,140.15,3.17011526]
[1763242161243,0.04925559,140.18,140.15,3.17011526]
[1763242161542,5.21291124,140.18,140.15,3.17011526]
[1763242161743,0.04925559,140.18,140.15,3.17011526]
[1763242161943,5.21291124,140.18,140.15,3.17011526]
[1763242162137,0.04925559,140.18,140.15,3.17011526]
[1763242162338,5.21291124,140.18,140.15,3.17011526]
[1763242162643,0.04925559,140.18,140.15,3.17011526]
[1763242162845,5.21291124,140.18,140.15,3.17011526]
[1763242163040,0.04925559,140.18,140.15,3.17011526]
[1763242163242,5.21291124,140.18,140.15,3.17011526]
[1763242163442,0.04925559,140.18,140.15,3.17011526]
[1763242163646,5.21291124,140.18,140.15,3.17011526]
[1763242163844,0.04925559,140.18,140.15,3.17011526]
[1763242164934,1.83293862,140.17,140.15,0.05011526]
[1763242165140,0.04925559,140.18,140.15,0.05011526]
[1763242165141,5.1609384,140.16,140.15,0.05011526]
[1763242165337,5.1609384,140.17,140.15,0.05011526]
[1763242165746,5.1609384,140.17,140.16,3.12]
[1763242166353,5.21019399,140.18,140.16,3.12]
[1763242167542,0.04925559,140.18,140.16,3.12]
[1763242167743,5.21019399,140.18,140.16,3.12]
[1763242168039,0.04925559,140.18,140.16,3.12]
[1763242168244,5.21019399,140.18,140.16,3.12]
[1763242168445,0.04925559,140.18,140.16,3.12]
[1763242168644,5.21019399,140.18,140.16,3.12]
[1763242168845,0.04925559,140.18,140.16,3.12]
[1763242169046,5.21019399,140.18,140.16,3.12]
[1763242169253,0.04925559,140.18,140.16,3.12]
[1763242169453,5.21019399,140.18,140.16,3.12]
[1763242169659,0.04925559,140.18,140.16,3.12]
[1763242169953,5.21019399,140.18,140.16,3.12]
[1763242170150,0.04925559,140.18,140.16,3.12]
[1763242170546,5.21019399,140.18,140.16,3.12]
[1763242170741,0.04925559,140.18,140.16,3.12]
[1763242170947,5.21019399,140.18,140.16,3.12]
[1763242171150,0.04925559,140.18,140.16,3.12]
[1763242171353,5.21019399,140.18,140.16,3.12]
[1763242171555,0.04925559,140.18,140.16,3.12]
[1763242171756,5.21019399,140.18,140.16,3.12]
[1763242172054,0.04925559,140.18,140.16,3.12]
[1763242172456,5.21019399,140.18,140.16,3.12]
[1763242172655,0.04925559,140.18,140.16,3.12]
[1763242173054,5.21019399,140.18,140.16,3.12]
[1763242173256,0.04925559,140.18,140.16,3.12]
[1763242173755,5.21019399,140.18,140.17,4.95293862]
[1763242173944,0.04925559,140.18,140.17,4.95293862]
[1763242174447,5.21019399,140.18,140.17,4.95293862]
[1763242174648,0.04925559,140.18,140.17,4.95293862]
[1763242175049,5.21019399,140.18,140.17,4.95293862]
[1763242175356,0.04925559,140.18,140.17,4.95293862]
[1763242175557,5.21019399,140.18,140.17,4.95293862]
[1763242175757,0.04925559,140.18,140.17,4.95293862]
[1763242175957,5.21019399,140.18,140.17,4.95293862]
[1763242176146,0.04925559,140.18,140.17,4.95293862]
[1763242176347,5.21019399,140.18,140.17,4.95293862]
[1763242176560,0.04925559,140.18,140.17,4.95293862]
[1763242176752,5.21019399,140.18,140.17,4.95293862]
[1763242176951,0.04925559,140.18,140.17,4.95293862]
[1763242177355,5.21019399,140.18,140.17,4.95293862]
[1763242177649,0.04925559,140.18,140.17,4.95293862]
[1763242178052,5.21019399,140.18,140.17,4.95293862]
[1763242178251,0.04925559,140.18,140.17,4.95293862]
[1763242178648,5.21019399,140.18,140.17,4.95293862]
[1763242178859,0.04925559,140.18,140.17,4.95293862]
[1763242179261,5.21019399,140.18,140.17,4.95293862]
[1763242179461,0.04925559,140.18,140.17,4.95293862]
[1763242179964,5.21019399,140.18,140.17,4.95293862]
[1763242180262,0.04925559,140.18,140.17,4.95293862]
[1763242180663,5.21019399,140.18,140.17,4.95293862]
[1763242180859,0.04925559,140.18,140.17,4.95293862]
[1763242181258,5.21019399,140.18,140.17,4.95293862]
[1763242181456,0.04925559,140.18,140.17,4.95293862]
[1763242181864,5.21019399,140.18,140.17,4.95293862]
[1763242182066,0.04925559,140.18,140.17,4.95293862]
[1763242182563,5.21019399,140.18,140.17,4.95293862]
[1763242182764,0.04925559,140.18,140.17,4.95293862]
[1763242183156,5.21019399,140.18,140.17,4.95293862]
[1763242183466,0.04925559,140.18,140.17,4.95293862]
[1763242183866,5.21019399,140.18,140.17,4.95293862]
[1763242184165,0.04925559,140.18,140.17,4.95293862]
[1763242184567,5.21019399,140.18,140.17,4.95293862]
[1763242184868,0.04925559,140.18,140.17,3.12]
[1763242185262,5.21019399,140.18,140.17,3.12]
[1763242185462,0.04925559,140.18,140.17,3.12]
[1763242185860,5.21019399,140.18,140.17,3.12]
[1763242186060,0.04925559,140.18,140.17,3.12]
[1763242186562,5.21019399,140.18,140.17,3.12]
[1763242186762,0.04925559,140.18,140.17,3.12]
[1763242187073,5.21019399,140.18,140.17,3.12]
[1763242187370,10.3769115,140.18,140.17,3.12]
[1763242187562,5.21019399,140.18,140.17,3.12]
[1763242188470,10.3769115,140.18,140.17,3.12]
[1763242188664,5.21019399,140.18,140.17,3.12]
[1763242189076,10.3769115,140.18,140.17,3.12]
[1763242189266,5.21019399,140.18,140.17,3.12]
[1763242190578,5.21019399,140.18,140.16,3.34]
[1763242190778,0.04925559,140.18,140.16,3.34]
[1763242191368,0.04925559,140.18,140.15,3.39011526]
[1763242191680,10.33578626,140.17,140.11,3.34]
[1763242191881,10.33578626,140.16,140.11,3.34]
[1763242192078,10.33578626,140.15,140.11,3.34]
[1763242192278,10.33578626,140.14,140.11,3.34]
[1763242192476,5.16671751,140.17,140.11,3.34]
[1763242192682,0.04533929,140.15,140.13,0.04967959]
[1763242192981,10.33340089,140.14,140.13,0.04967959]
[1763242193181,5.16668338,140.14,140.13,0.04967959]
[1763242199396,11.7771218,140.14,140.07,3.34]
[1763242199691,10.3571218,140.13,140.07,3.34]
[1763242199892,5.16668338,140.12,140.07,3.34]
[1763242200085,10.3571218,140.13,140.07,3.34]
[1763242200286,0.05011208,140.11,140.09,0.04950629]
[1763242202288,0.05011208,140.11,140.09,3.38950629]
[1763242203592,0.05011208,140.11,140.09,0.04950629]
[1763242206596,0.05011208,140.11,140.09,3.42950629]
[1763242209094,0.05011208,140.11,140.09,0.04950629]
[1763242210700,0.05011208,140.11,140.09,3.42950629]
[1763242210901,0.05011208,140.11,140.09,0.04950629]
[1763242217412,4.33482175,140.11,140.09,0.04950629]
[1763242217600,4.33482175,140.11,140.06,1.37590689]
[1763242217804,2.86470967,140.09,140.06,1.37590689]
[1763242218204,2.86470967,140.09,140.06,0.84125284]
[1763242218511,4.28470967,140.09,140.06,0.89088828]
[1763242219504,10.3571218,140.1,140.06,0.89088828]
[1763242219505,13.22183147,140.1,140.06,0.89088828]
[1763242219706,2.86470967,140.1,140.06,3.98088828]
[1763242220013,2.86470967,140.1,140.06,0.89088828]
[1763242220608,13.22183147,140.1,140.06,0.89088828]
[1763242221413,2.86470967,140.08,140.06,0.89088828]
[1763242222802,4.28470967,140.08,140.06,0.89088828]
[1763242223705,4.28470967,140.07,140.0,500.0]
[1763242223912,2.86470967,140.04,140.0,500.0]
[1763242224099,74.68,140.05,140.01,3.09]
[1763242224297,74.68,140.05,140.0,500.0]
[1763242224498,74.68,140.05,140.0,503.09]
[1763242224702,0.04772198,140.04,140.0,503.09]
[1763242225106,0.04772198,140.04,140.01,3.09]
[1763242226304,0.04772198,140.04,140.0,500.0]
[1763242227911,2.86470967,140.03,140.0,500.0]
[1763242229707,2.86470967,140.01,140.0,500.0]
[1763242230306,2.86470967,140.01,140.0,315.15534216]
[1763242230307,4.28470967,140.01,140.0,315.15534216]
[1763242230508,23.33037738,140.01,140.0,315.15534216]
[1763242230908,18.12700013,140.01,140.0,315.15534216]
[1763242231107,14.58736408,140.01,140.0,276.73064827]
[1763242231312,30.35968133,140.01,140.0,31.65859336]
[1763242231610,103.65968133,140.01,139.88,3.09]
[1763242231815,2.86470967,139.95,139.88,3.09]
[1763242232002,2.86470967,139.95,139.84,2.86470967]
[1763242232003,0.0512605,139.93,139.9,3.09]
[1763242232208,0.0512605,139.93,139.92,3.09]
[1763242232410,0.0454042,139.94,139.92,3.09]
[1763242232611,5.07731518,140.0,139.92,3.09]
[1763242232612,6.50605251,140.01,139.93,8.79470967]
[1763242232907,2.86470967,140.02,139.95,5.95470967]
[1763242232908,74.74,140.0,139.95,5.95470967]
[1763242233112,5.07775032,139.99,139.97,2.86470967]
[1763242233310,74.74,140.0,139.97,2.86470967]
[1763242233311,74.74,140.0,139.97,2.84]
[1763242233519,74.74,140.0,139.98,2.84]
[1763242233716,0.04652586,139.99,139.97,2.88673773]
[1763242234321,0.04652586,139.99,139.98,2.84]
[1763242237115,0.04652586,139.99,139.98,6.12]
[1763242237316,5.09026994,140.06,139.99,3.28]
[1763242237524,31.88,140.05,140.01,3.28]
[1763242237816,31.88,140.05,140.03,3.28]
[1763242238114,70.86470967,140.1,140.03,3.28]
[1763242238310,0.04529788,140.08,140.05,3.33098247]
[1763242239521,2.91000755,140.08,140.05,3.33098247]
[1763242240711,2.86470967,140.06,140.05,0.05098247]
[1763242241313,2.86470967,140.06,140.05,0.00136588]
[1763242247025,1.83814641,140.06,140.05,0.00136588]
[1763242247714,1.83814641,140.06,139.98,3.28]
[1763242247912,1.83814641,140.0,139.98,3.28]
[1763242248521,1.83814641,140.0,139.95,3.28]
[1763242248815,1.83814641,140.0,139.92,1.83814641]
[1763242248816,1.83814641,139.98,139.96,3.32228112]
[1763242249014,1.8891719,139.98,139.96,3.32228112]
[1763242255231,1.83814641,139.97,139.96,3.32228112]
[1763242261035,1.83814641,139.99,139.97,3.28]
[1763242261239,5.13763746,140.03,139.97,3.28]
[1763242261440,10.23527509,140.04,139.97,3.28]
[1763242261636,1.83814641,139.99,139.97,3.28]
[1763242262142,1.88609411,139.99,139.97,3.32643293]
[1763242269141,7.02373157,139.99,139.97,0.04643293]
[1763242269337,1.88609411,139.99,139.97,0.04643293]
[1763242269734,7.02373157,139.99,139.97,0.04643293]
[1763242269934,1.88609411,139.99,139.97,0.04643293]
[1763242270337,7.02373157,139.99,139.97,0.04643293]
[1763242270535,1.88609411,139.99,139.97,0.04643293]
[1763242270841,7.02373157,139.99,139.97,0.04643293]
[1763242271043,1.88609411,139.99,139.97,0.04643293]
[1763242271235,7.02373157,139.99,139.97,0.04643293]
[1763242271437,1.88609411,139.99,139.97,0.04643293]
[1763242271635,7.02373157,139.99,139.97,0.04643293]
[1763242271837,0.0479477,139.99,139.97,3.42643293]
[1763242272044,1.83814641,139.98,139.97,3.42643293]
[1763242274135,1.83814641,139.98,139.97,0.04643293]
[1763242277645,1.83814641,139.98,139.97,3.32643293]
[1763242277846,6.97578387,139.98,139.97,0.04643293]
[1763242278048,0.0479477,139.99,139.97,3.32643293]
[1763242278345,1.83814641,139.98,139.97,3.32643293]
[1763242279444,0.0479477,139.99,139.97,4.74643293]
[1763242279644,1.83814641,140.02,139.98,3.28]
[1763242280737,0.05181664,140.01,139.98,3.28]
[1763242282343,1.83814641,140.0,139.98,3.28]
[1763242284245,6.97578387,140.0,139.98,3.28]
[1763242285257,5.13763746,139.99,139.98,3.28]
[1763242285950,5.13763746,140.0,139.98,3.28]
[1763242286151,5.1894541,140.01,139.98,3.28]
[1763242286355,0.05181664,140.01,139.98,3.28]
[1763242286557,5.1894541,140.01,139.98,3.28]
[1763242286859,0.05181664,140.01,139.98,3.28]
[1763242287052,5.1894541,140.01,139.98,3.28]
[1763242287251,0.05181664,140.01,139.98,3.28]
[1763242287449,5.1894541,140.01,139.98,3.28]
[1763242287649,0.05181664,140.01,139.98,3.28]
[1763242287850,5.1894541,140.01,139.99,3.28]
[1763242288050,0.05181664,140.01,139.99,3.28]
[1763242288251,5.13763746,140.02,139.99,3.28]
[1763242288552,10.26505694,140.04,140.01,3.28]
[1763242288754,5.09763763,140.06,140.01,3.28]
[1763242288959,1.83814641,140.07,140.01,3.28]
[1763242289158,6.93578404,140.07,140.01,3.28]
[1763242289459,0.04624357,140.05,140.04,3.28]
[1763242291854,1.88438998,140.05,140.03,3.33276789]
[1763242292050,6.98202761,140.05,140.03,3.33276789]
[1763242292246,1.88438998,140.05,140.03,3.33276789]
[1763242292458,6.98202761,140.05,140.03,3.33276789]
[1763242293463,1.88438998,140.05,140.03,3.33276789]
[1763242295564,1.88438998,140.05,140.03,0.05276789]
[1763242295861,6.98202761,140.05,140.03,0.05276789]
[1763242300365,5.09184172,140.04,140.03,0.05276789]
[1763242306260,5.09184172,140.04,140.03,0.00482019]
[1763242307366,5.09184172,140.04,140.03,3.25482019]
[1763242311465,5.09184172,140.04,140.03,0.00482019]
[1763242314975,10.18947935,140.04,140.03,0.00482019]
[1763242315477,16.69553186,140.04,140.03,0.00482019]
[1763242320382,10.18947935,140.04,140.03,0.00482019]
[1763242320777,18.86421603,140.04,139.96,3.25]
[1763242321081,2.87229279,140.02,139.96,3.25]
[1763242321374,10.18947935,140.01,139.96,3.25]
[1763242321581,5.09184172,140.0,139.96,3.25]
[1763242321776,5.14159482,139.99,139.98,3.25]
[1763242321969,0.0497531,139.99,139.98,3.25]
[1763242322172,5.14159482,139.99,139.98,3.25]
[1763242322367,0.0497531,139.99,139.98,3.25]
[1763242322568,5.14159482,139.99,139.97,3.30218941]
[1763242322878,5.09184172,139.98,139.97,3.30218941]
[1763242325376,0.0497531,139.99,139.97,3.30218941]
[1763242325582,5.14159482,139.99,139.97,3.30218941]
[1763242325786,0.0497531,139.99,139.97,3.30218941]
[1763242326080,5.14159482,139.99,139.97,3.30218941]
[1763242326283,0.0497531,139.99,139.97,3.30218941]
[1763242326479,5.14159482,139.99,139.97,3.30218941]
[1763242326681,0.0497531,139.99,139.97,3.30218941]
[1763242326983,5.14159482,139.99,139.97,3.30218941]
[1763242327170,0.0497531,139.99,139.97,3.30218941]
[1763242327375,5.14159482,139.99,139.97,3.30218941]
[1763242327575,0.0497531,139.99,139.97,3.30218941]
[1763242327783,5.09184172,139.98,139.97,3.30218941]
[1763242328584,5.09184172,139.98,139.97,0.05218941]
[1763242329283,7.96413451,139.98,139.97,0.05218941]
[1763242329580,13.06177214,139.98,139.97,0.05218941]
[1763242332187,7.96413451,139.98,139.97,0.05218941]
[1763242332684,13.06177214,139.98,139.97,0.05218941]
[1763242333284,13.06177214,139.98,139.92,3.39]
[1763242333492,2.87229279,139.96,139.87,3.2]
[1763242333684,7.96413451,139.96,139.87,3.2]
[1763242334589,7.96413451,139.96,139.86,23.87229279]
[1763242334590,0.05300634,139.93,139.91,3.2]
[1763242334785,0.05300634,139.93,139.9,3.24892952]
[1763242348013,0.05300634,139.93,139.9,0.04892952]
[1763242350320,2.87229279,139.92,139.9,0.04892952]
[1763242352819,0.05300634,139.93,139.9,3.24892952]
[1763242362917,11.64359557,139.98,139.92,2.87229279]
[1763242363122,10.16827206,139.99,139.93,3.09]
[1763242363323,5.07063443,140.01,139.95,3.09]
[1763242363518,5.09763763,140.01,139.95,3.09]
[1763242363722,5.07063443,140.02,139.95,3.09]
[1763242364030,0.04550897,140.0,139.98,3.09]
[1763242373224,1.88412196,140.0,139.97,0.04905624]
[1763242379530,1.83861299,139.98,139.97,3.13905624]
[1763242379729,1.83861299,139.98,139.97,0.04905624]
[1763242380133,1.83861299,139.98,139.97,3.13905624]
[1763242380332,0.04550897,140.0,139.97,3.13905624]
[1763242392644,0.04550897,140.0,139.99,3.31]
[1763242392947,12.00688505,140.08,140.03,3.31]
[1763242393148,1.83861299,140.06,140.03,3.31]
[1763242393341,1.83861299,140.04,139.99,1.83861299]
[1763242393543,1.83861299,140.04,140.0,3.31]
[1763242393844,0.05249282,140.03,140.02,3.31]
[1763242394047,1.88989682,140.04,140.02,3.31]
[1763242394250,1.89346524,140.04,140.02,3.35788031]
[1763242395853,1.89346524,140.04,140.02,0.04788031]
[1763242396454,1.89346524,140.04,140.02,3.35788031]
[1763242398749,0.05485225,140.04,140.02,3.35788031]
[1763242399053,1.83861299,140.03,140.02,3.35788031]
[1763242404061,0.05485225,140.04,140.02,3.35788031]
[1763242404454,1.83861299,140.03,140.02,3.35788031]
[1763242405357,1.83861299,140.03,140.02,0.04788031]
[1763242406254,6.90924742,140.03,140.02,3.35788031]
[1763242406455,1.83861299,140.03,140.02,3.35788031]
[1763242407164,5.12548668,140.04,140.02,3.35788031]
[1763242407558,6.90924742,140.03,140.02,3.35788031]
[1763242409258,5.07063443,140.03,140.02,3.35788031]
[1763242410065,5.12548668,140.04,140.02,3.35788031]
[1763242414167,5.13491691,140.04,140.02,3.35788031]
[1763242414658,0.05485225,140.04,140.03,3.28]
[1763242414859,5.13491691,140.04,140.03,3.28]
[1763242415054,0.05485225,140.04,140.03,3.28]
[1763242415256,10.19806759,140.08,140.03,3.28]
[1763242415461,5.08006466,140.07,140.03,3.28]
[1763242415668,5.08006466,140.06,140.03,3.28]